Cogmind - Beta 16 @@@ ROGUE MODE // 2025.11.03 @ 23:30:12 Player: Parallel Result: Destroyed by H-61 Shepherd with Heavy Assault Cannon Performance ------------- Evolutions (3) 1500 Regions Visited (8) 1600 Robots Destroyed (94) 470 Value Destroyed (3949) 3949 Prototype IDs (26) 520 Alien Tech Used (0) 0 Bonus (1713) 1713 TOTAL SCORE: 9752 Bonus ------- High Alert Combat Kills 632 Follower Combat Kills 81 Entered Garrisons 200 Used RIF Installer 500 Aligned with FarCom 300 Cogmind --------- Core Integrity 0/700 Matter 79/300 Energy 66/100 System Corruption 7% Temperature Cool (3) Movement Treading (160) Location -7/Factory Parts ------- > --- POWER (2) -------- (None) > --- PROPULSION (4) --- Medium Treads Medium Treads VSS Leg > --- UTILITY (4) ------ Large Storage Unit Hacking Suite Relay Coupler [Grunt] (12) > --- WEAPON (3) ------- Missile Launcher > --- INVENTORY (15) --- Light Nuclear Core Improved Titanium Leg Improved Terrain Scanner Transmission Jammer Improved Light Armor Plating Improved Light Armor Plating Relay Coupler [NC] (29) Relay Coupler [NC] (30) Relay Coupler [Grunt] (26) Relay Coupler [Specialist] (19) Relay Coupler [Behemoth] (12) Sensor Drone Bay (16/20) Peak State ------------ > --- POWER ------------ Light Fission Core Light Fission Core > --- PROPULSION ------- Improved Carbon-fiber Leg Improved Carbon-fiber Leg Improved Carbon-fiber Leg Improved Carbon-fiber Leg > --- UTILITY ---------- Large Storage Unit Hacking Suite System Shield Sensor Drone Bay > --- WEAPON ----------- Improved EM Pulse Cannon Plasma Cannon Plasma Cannon > --- INVENTORY -------- Light Ion Engine Light Nuclear Core Improved Terrain Scanner Improved Light Armor Plating Improved Light Armor Plating Improved Light Armor Plating Relay Coupler [NC] Relay Coupler [Specialist] Chronowheel Plasma Cannon Assault Cannon [Rating: 57] Favorites ----------- Power Light Nuclear Core Engine Light Ion Engine Power Core Light Nuclear Core Propulsion Aluminum Leg Treads Light Treads Leg Aluminum Leg Utility Large Storage Unit Device Seismic Detector Storage Large Storage Unit Processor Target Analyzer Hackware Hacking Suite Protection Improved Light Armor Plating Weapon Plasma Cannon Energy Gun Heavy Particle Gun Energy Cannon Plasma Cannon Ballistic Gun Light Assault Rifle Ballistic Cannon Assault Cannon Launcher Proton Missile Launcher Special Weapon Remote Datajack Build | -11 -10 -10 -10 -9 -8 -7 -7 -7 ------- Run | Yrd Mat Min Exi Min Mat Fac Gar Fac Slots Evolved 6 | . . . . . 4 2 . . Power 1 | . . . . . . 1 . . Propulsion 2 | . . . . . 2 . . . Utility 2 | . . . . . 2 . . . Weapon 1 | . . . . . . 1 . . Parts Attached 78 | 6 3 1 1 1 18 5 18 25 Power 13 | 1 1 . . . 2 1 6 2 Engine 4 | 1 1 . . . 1 . 1 . Core 9 | . . . . . 1 1 5 2 Reactor . | . . . . . . . . . Propulsion 28 | 2 . . . . 5 4 8 9 Treads 10 | 2 . . . . . 4 1 3 Leg 18 | . . . . . 5 . 7 6 Wheel . | . . . . . . . . . Hover . | . . . . . . . . . Flight . | . . . . . . . . . Utility 14 | 1 1 . . 1 5 . 2 4 Device 4 | 1 . . . 1 1 . 1 . Storage 1 | . 1 . . . . . . . Processor 1 | . . . . . . . . 1 Hackware 5 | . . . . . 3 . . 2 Protection 3 | . . . . . 1 . 1 1 Artifact . | . . . . . . . . . Weapon 23 | 2 1 1 1 . 6 . 2 10 Energy Gun 3 | 1 . . . . . . . 2 Energy Cannon 5 | . . . . . 4 . 1 . Ballistic Gun 6 | 1 . 1 1 . 1 . . 2 Ballistic Cannon 2 | . . . . . 1 . . 1 Launcher 6 | . 1 . . . . . 1 4 Special Weapon 1 | . . . . . . . . 1 Impact Weapon . | . . . . . . . . . Slashing Weapon . | . . . . . . . . . Piercing Weapon . | . . . . . . . . . Special Melee Weapon . | . . . . . . . . . Unidentified Prototypes 3 | . . . . 1 . . . 2 Parts Lost 25 | . 1 . . . . . 12 12 Power 7 | . . . . . . . 4 3 Propulsion 7 | . . . . . . . 4 3 Utility 1 | . . . . . . . . 1 Weapon 10 | . 1 . . . . . 4 5 Highest Loss Streak 5 | . 1 . . . . . 5 4 To Critical Strikes . | . . . . . . . . . Average Backups 12 | 2 5 8 12 12 13 13 12 14 Power . | . . . . . . 1 1 1 Propulsion 1 | 1 1 1 4 4 2 1 2 . Utility 6 | 1 3 4 4 4 5 5 6 10 Weapon 2 | . . 3 3 3 3 5 1 . Tool/Special . | . . . . . . . . . Unused Backups 15 | . . . . . . 4 . 11 Power 1 | . . . . . . . . 1 Propulsion 1 | . . . . . . 1 . . Utility 11 | . . . . . . 2 . 9 Weapon 1 | . . . . . . 1 . . Tool/Special 1 | . . . . . . . . 1 Average Slot Usage (%) 92 | . 99 87 87 99 87 88 96 89 Engine 5 | . 14 14 14 14 5 . 1 1 Core 7 | . . . . . 3 12 13 9 Treads 15 | . 28 28 28 28 7 13 15 4 Leg 13 | . . . . . 20 15 14 24 Device 8 | . 14 14 14 13 6 7 6 4 Storage 9 | . 13 14 14 14 9 7 7 7 Hackware 8 | . . . . . 15 15 11 11 Protection 1 | . . . . . . . 3 3 Energy Gun 1 | . 10 . . . . . . 3 Energy Cannon 6 | . . . . . 7 15 12 7 Ballistic Gun 5 | . 14 14 16 28 3 . . 1 Ballistic Cannon 1 | . . . . . 3 . 3 1 Launcher 2 | . 3 2 . . 3 . 3 2 Peak Build Rating 57 | 6 8 8 9 16 32 45 57 51 Average Rating 29 | 4 7 7 8 10 23 37 47 39 On Entrance 16 | . 6 8 7 9 9 31 45 37 Avg Prop Armor Cover (%) 10 | . . . . . . . 5 10 Naked Turns . | . . . . . . . . . Heaviest Build 69 | 7 28 28 26 39 43 46 69 54 Greatest Support 112 | 40 40 40 40 40 45 112 112 84 Greatest Overweight (x) 8 | . . . . . 1 1 1 8 Average Overweight (x) . | . . . . . . . . . Largest Inventory Capacity 15 | 5 15 15 15 15 15 15 15 15 Average Capacity 14 | 5 14 15 15 15 15 15 15 15 Most Carried 15 | 4 7 12 13 13 15 15 15 15 Average Carried 12 | 3 5 9 12 12 13 13 12 14 Final Capacity 15 | 5 15 15 15 15 15 15 15 15 Final Carried 15 | 4 7 12 12 13 14 15 15 12 Class Distribution -------------------- 36% | Mutant 15% | Hacker-Skirmisher 15% | Bothacker-Skirmisher 13% | Scavenger-Mutant 6% | Bothacker-Mutant 5% | Hacker-Mutant 4% | Skirmisher Dominant Class ---------------- Mutant | -10/Materials Mutant | -10/Mines Mutant | -10/Exiles Mutant | -9/Mines Scavenger-Mutant | -8/Materials Scavenger-Mutant | -7/Factory Hacker-Skirmisher | -7/Garrison Bothacker-Skirmisher | -7/Factory Resources | -11 -10 -10 -10 -9 -8 -7 -7 -7 ----------- Run | Yrd Mat Min Exi Min Mat Fac Gar Fac Matter Collected 2124 | 209 133 107 . 12 333 57 837 436 Remotely . | . . . . . . . . . Salvage Created 3309 | 88 355 64 . 15 315 . 1325 1147 Parts 180 | 5 28 13 . 3 19 . 61 51 Haulers Intercepted 1 | . . . . . . . . 1 Recyclers Shooed 3 | . . . . . . . . 3 Parts Field Recycled . | . . . . . . . . . Retrieved Matter . | . . . . . . . . . Parts Self-Destructed . | . . . . . . . . . Prevented . | . . . . . . . . . Parts Restored . | . . . . . . . . . Kills | -11 -10 -10 -10 -9 -8 -7 -7 -7 ------- Run | Yrd Mat Min Exi Min Mat Fac Gar Fac Combat Hostiles Destroyed 74 | . 6 6 . . 10 . 33 19 Guns 17 | . 5 3 . . . . . 9 Cannons 36 | . . . . . 5 . 24 7 AOE 17 | . 1 3 . . 5 . 7 1 Classes Destroyed 16 | 2 4 1 . . 2 . 3 4 Worker 7 | . . 1 . 1 . . . 5 Builder 3 | . 1 . . . . . . 2 Tunneler 3 | 1 1 . . . 1 . . . Hauler 1 | . . . . . . . . 1 Recycler 3 | 1 1 . . . . . . 1 Mechanic 1 | . . . . . . . . 1 Operator 2 | . 2 . . . . . . . Drone 1 | . . . . . . . 1 . Swarmer 23 | . 1 6 . . 4 . 9 3 Cutter 3 | . . . . . . . 3 . Grunt 23 | . 5 . . . 3 . 11 4 Duelist 2 | . . . . . . . . 2 Sentry 7 | . . . . . 2 . 5 . Specialist 4 | . . . . . . . . 4 Hunter 3 | . . . . . 1 . . 2 Programmer 9 | . . . . . . . 5 4 Best Kill Streak 5 | 2 3 3 . 1 4 . 5 4 Combat Bots Only 5 | . 3 3 . . 4 . 5 4 Max Kills in Single Turn 4 | 1 1 3 . 1 4 . 2 2 Gunslinging 1 | . . 1 . . . . . 1 Exploded 4 | . 1 3 . . 4 . 2 1 Melee . | . . . . . . . . . Uniques/NPCs Destroyed . | . . . . . . . . . Combat | -11 -10 -10 -10 -9 -8 -7 -7 -7 -------- Run | Yrd Mat Min Exi Min Mat Fac Gar Fac Hostile Shots Fired 531 | . 19 26 . . 28 . 290 168 Missed 152 | . 5 3 . . 6 . 93 45 Hits 379 | . 14 23 . . 22 . 197 123 Melee 13 | . . . . . . . 4 9 Projectile 366 | . 14 23 . . 22 . 193 114 Critical Strikes 18 | . . . . . 1 . 6 11 Damage Taken 5656 | . 194 288 . . 333 . 2449 2392 Core 911 | . 50 61 . . 44 . 386 370 Absorbed by Shields . | . . . . . . . . . Regen/Repaired (Parts) 160 | . . . . . . . . 160 Core Remaining (%) 82 | 100 . . . 55 92 . . . Volleys Fired 276 | 3 34 25 . 1 27 . 103 83 Largest 3 | 2 2 2 . 2 2 . 3 3 Hottest 215 | 60 60 50 . 40 160 . 197 215 Shots Fired 500 | 6 68 29 . 2 44 . 203 148 Gun 205 | 6 61 27 . 2 5 . . 104 Cannon 255 | . . . . . 35 . 188 32 Launcher 36 | . 7 2 . . 4 . 15 8 Special 4 | . . . . . . . . 4 Kinetic 181 | 3 34 27 . 2 18 . 60 37 Thermal 239 | . . . . . 16 . 124 99 Explosive 16 | . 7 2 . . 4 . . 3 Electromagnetic 60 | 3 27 . . . 6 . 19 5 Robot Hit Streak 16 | 2 9 6 . 1 9 . 12 16 Robot Miss Streak 4 | 1 3 2 . . 2 . 4 4 Penetration Max 1 | . . . . . . . . 1 Secondary Targets 2 | . . 1 . . . . . 1 Max Gunslinging Chain 1 | . . 1 . . . . . 1 Shots Hit Robots 283 | 4 35 20 . 1 24 . 102 97 Core Hits 145 | 3 20 10 . 1 20 . 50 41 Critical Kills 1 | . . . . . . . . 1 Critical Parts Destroyed 1 | . . . . . . . . 1 Critical Strikes 5 | . 1 . . . . . 1 3 Burn 1 | . . . . . . . . 1 Meltdown 1 | . . . . . . . . 1 Destroy 1 | . . . . . . . . 1 Blast 1 | . . . . . . . 1 . Corrupt 1 | . 1 . . . . . . . Melee Attacks . | . . . . . . . . . Impact . | . . . . . . . . . Slashing . | . . . . . . . . . Piercing . | . . . . . . . . . Sneak Attacks . | . . . . . . . . . Combat Hostiles . | . . . . . . . . . Follow-up Attacks . | . . . . . . . . . Damage Inflicted 7376 | 47 554 307 . 10 767 . 3178 2513 Guns 2022 | 47 392 173 . 10 39 . . 1361 Cannons 3707 | . . . . . 498 . 2484 725 Explosions 1601 | . 162 121 . . 230 . 668 420 Melee . | . . . . . . . . . Ramming 46 | . . 13 . . . . 26 7 Kinetic 1986 | 8 132 173 . 10 267 . 823 573 Thermal 3279 | . 26 . . . 125 . 1564 1564 Explosive 547 | . 136 121 . . 230 . . 60 Electromagnetic 1518 | 39 260 . . . 145 . 765 309 Impact . | . . . . . . . . . Slashing . | . . . . . . . . . Piercing . | . . . . . . . . . Highest Corruption 7 | . . . . . . . 2 7 Average Corruption 3 | . . . . . . . 1 5 Corruption Purged . | . . . . . . . . . Corruption Blocked . | . . . . . . . . . Effects 86 | . . . . . . . 19 67 Message Errors 17 | . . . . . . . 3 14 Matter Fused 20 | . . . . . . . 7 13 Heat Flow Errors 13 | . . . . . . . 2 11 Energy Discharges 6 | . . . . . . . . 6 Parts Rejected 1 | . . . . . . . . 1 Parts Fused 1 | . . . . . . . . 1 Data Loss (minor) 17 | . . . . . . . 4 13 Data Loss (major) 4 | . . . . . . . 1 3 Misfires 3 | . . . . . . . 1 2 Alerts 1 | . . . . . . . 1 . Weapon Failures 3 | . . . . . . . . 3 Overload Shots . | . . . . . . . . . Overflow Damage 101 | . 12 . . . . . 49 40 Projectiles 63 | . . . . . . . 27 36 Explosions 38 | . 12 . . . . . 22 4 Melee . | . . . . . . . . . Knockbacks 13 | . . . . . 4 . 9 . Impact . | . . . . . . . . . Kinetic 13 | . . . . . 4 . 9 . Secondary . | . . . . . . . . . Self-Inflicted Damage 113 | . 40 . . . . . 49 24 Shots 5 | . 1 . . . . . 3 1 Rammed 1 | . . . . . . . . 1 Targets Rammed 6 | . . 1 . . . . 3 2 Kicked 4 | . . . . . . . 3 1 Crushed 1 | . . 1 . . . . . . Highest Temperature 630 | 40 88 10 . . 351 . 630 422 Average Temperature 121 | 19 27 8 . . 106 . 162 85 Received Heat Transfer 1131 | . 78 117 . . 153 . 666 117 Effects 41 | . . . . . 1 . 37 3 Shutdowns 13 | . . . . . . . 12 1 Energy Bleed 4 | . . . . . 1 . 2 1 Interference 3 | . . . . . . . 3 . Matter Decay 4 | . . . . . . . 4 . Short Circuit 3 | . . . . . . . 2 1 Damage (minor) 3 | . . . . . . . 3 . Damage (major) 10 | . . . . . . . 10 . Damage (core) 1 | . . . . . . . 1 . Siege Activations . | . . . . . . . . . Martial Activations . | . . . . . . . . . Shielding Activations . | . . . . . . . . . Robots Disrupted . | . . . . . . . . . Combat Hostiles . | . . . . . . . . . Robots Corrupted 2 | . . . . . . . 2 . Combat Hostiles 2 | . . . . . . . 2 . Parts Fried 6 | . . . . . . . 4 2 Impact Corruptions . | . . . . . . . . . Robots Melted 3 | . . . . . . . . 3 Combat Hostiles 2 | . . . . . . . . 2 Parts Melted 11 | . 1 . . . . . 3 7 Heat Transferred 6138 | . 50 . . . 250 . 2783 3055 Parts Sabotaged . | . . . . . . . . . Parts Stolen . | . . . . . . . . . Parts Stripped . | . . . . . . . . . Power Chain Reactions 4 | . 1 . . . . . . 3 Alert | -11 -10 -10 -10 -9 -8 -7 -7 -7 ------- Run | Yrd Mat Min Exi Min Mat Fac Gar Fac Maximum Alert Level 5 | . . . . . . . 5 3 Low Security (%) 45 | 100 100 100 . 100 100 100 14 . Level 1 7 | . . . . . . . 23 . Level 2 26 | . . . . . . . 17 72 Level 3 15 | . . . . . . . 23 27 Level 4 4 | . . . . . . . 15 . Level 5 1 | . . . . . . . 5 . High Security . | . . . . . . . . . Max Security . | . . . . . . . . . Peak Influence 1632 | 5 77 99 . 5 100 12 1632 856 Initial 856 | . . 7 . . . . . 856 Average 383 | . 22 28 . . 31 . 662 601 Influence Increases 3416 | 10 275 311 . 5 357 12 1782 664 Destroy 0b10 Robot/C 1580 | . 120 220 . . 200 . 660 380 Destroy 0b10 Robot/NC 95 | 10 25 5 . 5 5 . . 45 Destroy Leader 242 | . 20 40 . . 50 . 40 92 Allied During Kill 16 | . . 16 . . . . . . Successful Hack 88 | . 7 . . . 5 12 12 52 Select Force Hacks 60 | . 30 . . . 30 . . . Disable Machine 210 | . 45 15 . . 30 . 75 45 Anti-Garrison Action 800 | . . . . . . . 800 . Destroy Structure 190 | . 28 15 . . 37 . 75 35 Partial Spotted 15 | . . . . . . . . 15 Lose Combat Pursuer 120 | . . . . . . . 120 . Influence Decreases 2700 | 10 254 332 . 5 355 14 150 1580 Entered New Map 792 | . . 14 . . . 2 . 776 Time Decay 1608 | 10 254 298 . 5 355 12 . 674 Lost Part 240 | . . . . . . . 120 120 Lost Ally 60 | . . 20 . . . . 30 10 Squads Dispatched 21 | . 7 . . . 1 . . 13 Investigation 6 | . 4 . . . 1 . . 1 Extermination 4 | . . . . . . . . 4 Reinforcement 10 | . 3 . . . . . . 7 Assault 1 | . . . . . . . . 1 Garrison . | . . . . . . . . . Intercept . | . . . . . . . . . Searches Triggered . | . . . . . . . . . Construction Impeded 2 | . . . . . . . . 2 Haulers Reinforced . | . . . . . . . . . Active Scanning Responses . | . . . . . . . . . Cargo Convoy Interrupts 1 | . . . . . . . . 1 Stealth | -11 -10 -10 -10 -9 -8 -7 -7 -7 --------- Run | Yrd Mat Min Exi Min Mat Fac Gar Fac Distress Signals 9 | . 4 . . 1 . . . 4 Communications Jammed . | . . . . . . . . . Distress Signals . | . . . . . . . . . Times Spotted 124 | . 18 11 . 4 10 . 37 44 Peak Tracking Total 8 | . 3 3 . 6 4 . 6 8 Tactical Retreats 5 | . . . . 1 . . 4 . Traps | -11 -10 -10 -10 -9 -8 -7 -7 -7 ------- Run | Yrd Mat Min Exi Min Mat Fac Gar Fac Traps Triggered 14 | . . . . . 2 . 4 8 Indirectly 5 | . . . . . . . 4 1 Trap Hack Attempts . | . . . . . . . . . Triggered . | . . . . . . . . . Disarmed . | . . . . . . . . . Reprogrammed . | . . . . . . . . . Reused . | . . . . . . . . . Traps Extracted . | . . . . . . . . . Installed . | . . . . . . . . . Triggered . | . . . . . . . . . Machines | -11 -10 -10 -10 -9 -8 -7 -7 -7 ---------- Run | Yrd Mat Min Exi Min Mat Fac Gar Fac Machines Disabled 19 | . 3 1 . . 2 . 10 3 Max in Single Turn 2 | . 1 1 . . 2 . 1 2 Garrison Access 1 | . . . . . . . . 1 Garrison Relay 4 | . . . . . . . 4 . Machines Repaired . | . . . . . . . . . Machines Dismantled . | . . . . . . . . . Machines Sabotaged . | . . . . . . . . . Overloaded Fab Kills . | . . . . . . . . . Hacking | -11 -10 -10 -10 -9 -8 -7 -7 -7 --------- Run | Yrd Mat Min Exi Min Mat Fac Gar Fac Machines Accessed 22 | . 6 . 1 1 5 1 1 7 Terminals 10 | . 5 . . . 2 . 1 2 Fabricators 2 | . . . . . . . . 2 Repair Stations 1 | . . . . . . . . 1 Recycling Units 2 | . 1 . . . 1 . . . Scanalyzers 3 | . . . . . 2 . . 1 Garrison Access 2 | . . . . . . 1 . 1 Total Hacks 59 | . 12 . 1 1 28 1 1 15 Successful 47 | . 8 . 1 1 26 1 1 9 Failed 11 | . 4 . . . 1 . . 6 Catastrophic 3 | . 1 . . . . . . 2 Database Lockouts 1 | . . . . . 1 . . . Manual 20 | . 12 . 1 . 4 . . 3 Terminals 23 | . 11 . . . 6 . 1 5 Fabricators 4 | . . . . . . . . 4 Repair Stations 2 | . . . . . . . . 2 Recycling Units 2 | . 1 . . . 1 . . . Scanalyzers 24 | . . . . . 21 . . 3 Garrison Access 2 | . . . . . . 1 . 1 Terminal Hacks 9 | . 1 . 1 1 3 . 1 2 Record 2 | . . . . . 1 . . 1 Open Door 1 | . . . . 1 . . . . Emergency Access Points 2 | . . . . . . . 1 1 Terminal Index 2 | . 1 . . . 1 . . . Alert Level 1 | . . . . . 1 . . . Proto ID Catalog 1 | . . . 1 . . . . . Fabricator Hacks 1 | . . . . . . . . 1 Load Schematic 1 | . . . . . . . . 1 Repair Station Hacks 1 | . . . . . . . . 1 Scan Component 1 | . . . . . . . . 1 Recycling Unit Hacks . | . . . . . . . . . Scanalyzer 23 | . . . . . 20 . . 3 Insert Component 9 | . . . . . 8 . . 1 Analyze 10 | . . . . . 9 . . 1 Retrieve Study 4 | . . . . . 3 . . 1 Garrison Access Hacks 2 | . . . . . . 1 . 1 Unlock Access 1 | . . . . . . 1 . . Seal Access 1 | . . . . . . . . 1 Unauthorized Hacks 11 | . 7 . . . 3 . . 1 Terminals 9 | . 6 . . . 2 . . 1 Assimilate 1 | . . . . . . . . 1 Botnet 3 | . 2 . . . 1 . . . Skim 5 | . 4 . . . 1 . . . Fabricators . | . . . . . . . . . Repair Stations . | . . . . . . . . . Recycling Units 2 | . 1 . . . 1 . . . Tunnel 2 | . 1 . . . 1 . . . Scanalyzers . | . . . . . . . . . Garrison Access . | . . . . . . . . . Data Cores Recovered . | . . . . . . . . . Used . | . . . . . . . . . Hacking Detections 14 | . 3 . . . 4 1 1 5 Full Trace Events 3 | . 2 . . . . . . 1 Feedback Events . | . . . . . . . . . Feedback Blocked . | . . . . . . . . . Robot Schematics Acquired . | . . . . . . . . . Robots Built . | . . . . . . . . . Authchips . | . . . . . . . . . Time . | . . . . . . . . . Total Robot Build Rating . | . . . . . . . . . Part Schematics Acquired 9 | . . . . . 8 . . 1 Parts Built . | . . . . . . . . . Authchips . | . . . . . . . . . Time . | . . . . . . . . . Total Part Build Rating . | . . . . . . . . . Part Studies Acquired 3 | . . . . . 2 . . 1 Parts Repaired . | . . . . . . . . . Time . | . . . . . . . . . Parts Recycled . | . . . . . . . . . Recycled Matter . | . . . . . . . . . Retrieved Matter . | . . . . . . . . . Retrieved Components . | . . . . . . . . . Parts Scanalyzed 9 | . . . . . 8 . . 1 Part Schematics Acquired 9 | . . . . . 8 . . 1 Parts Damaged . | . . . . . . . . . Bothacking | -11 -10 -10 -10 -9 -8 -7 -7 -7 ------------ Run | Yrd Mat Min Exi Min Mat Fac Gar Fac Used RIF Installer 1 | . . . . . . . 1 . Robots Hacked 4 | . . . . . . . . 4 Non-combat 2 | . . . . . . . . 2 Combat 2 | . . . . . . . . 2 Robot Hacks Applied 4 | . . . . . . . . 4 start_evac 1 | . . . . . . . . 1 amplify_resonance 2 | . . . . . . . . 2 formatsys_low 1 | . . . . . . . . 1 Relay Couplers Released 20 | . . . . . . . 20 . Machine Destruction 17 | . . . . . . . 17 . Programmers 3 | . . . . . . . 3 . Attached 2 | . . . . . . . . 2 Fabnet Peak Effective % . | . . . . . . . . . Robots Rewired . | . . . . . . . . . Allies Hacked . | . . . . . . . . . Hacks Repelled . | . . . . . . . . . Allies | -11 -10 -10 -10 -9 -8 -7 -7 -7 -------- Run | Yrd Mat Min Exi Min Mat Fac Gar Fac Total Allies 5 | . . 3 . . . . . 2 Largest Group 3 | . . 3 1 1 . . . 1 Highest-Rated Group 40 | . . 40 16 16 . . . 26 Highest-Rated Ally 26 | . . 16 16 16 . . . 26 Total Orders 16 | . . . . 1 . . 14 1 AID 1 | . . . . . . . . 1 EXPLORE 15 | . . . . 1 . . 14 . Ally Attacks 31 | . . 26 . 5 . . . . Total Damage 295 | . . 250 . 45 . . . . Kills 5 | . . 5 . . . . . . Allies Corrupted . | . . . . . . . . . Allies Melted 1 | . . . . . . . . 1 Intel | -11 -10 -10 -10 -9 -8 -7 -7 -7 ------- Run | Yrd Mat Min Exi Min Mat Fac Gar Fac Active Infowar (turns) 2827 | 50 753 1053 662 309 . . . . Seismic 2827 | 50 753 1053 662 309 . . . . Robot Analysis Total . | . . . . . . . . . Derelict Logs Recovered 2 | . . 1 . 1 . . . . Drone Launches 13 | . . . . 1 . . 12 . Drone Recoveries 9 | . . . . 1 . . 8 . Exploration | -11 -10 -10 -10 -9 -8 -7 -7 -7 ------------- Run | Yrd Mat Min Exi Min Mat Fac Gar Fac Turns Passed 9663 | 127 753 1053 662 423 1132 184 2692 2637 Spaces Moved 4759 | 75 406 616 413 214 572 115 968 1380 Core 20 | 15 . . . . . . . 5 Treads 2610 | 60 406 616 413 214 266 47 308 280 Legs 2129 | . . . . . 306 68 660 1095 Wheels . | . . . . . . . . . Hover . | . . . . . . . . . Flight . | . . . . . . . . . Fastest Speed 50 | 50 160 160 160 160 108 108 112 108 Average Speed 149 | 138 160 160 160 160 135 144 138 150 Slowest Speed 450 | 160 160 160 160 160 180 240 190 450 Overloaded Moves . | . . . . . . . . . Propulsion Burnouts . | . . . . . . . . . Robots Hopped . | . . . . . . . . . Potential Cave-ins 2 | . 2 . . . . . . . Cave-ins Triggered . | . . . . . . . . . Time Travels 1 | . . . . . . . . 1 Exploration Rate (%) 51 | 5 87 90 72 49 39 3 87 29 Regions Visited 8 Branch Regions 3 Pre-discovered Areas 2 | . 1 . . . 1 . . . Known Exits Taken 2 | . . . . 1 . 1 . . Unknown Exits Taken 5 | 1 1 1 1 . 1 . . . Scrap Searched 2 | . . 1 . 1 . . . . Spaces Dug 17 | . 9 . . . 8 . . . Terrain Destroyed 143 | . 42 15 . . 45 . . 41 Melee . | . . . . . . . . . Projectile 10 | . . . . . 10 . . . AOE 133 | . 42 15 . . 35 . . 41 Terrain Rammed . | . . . . . . . . . Walls Destroyed . | . . . . . . . . . Machines Disabled . | . . . . . . . . . Actions | -11 -10 -10 -10 -9 -8 -7 -7 -7 --------- Run | Yrd Mat Min Exi Min Mat Fac Gar Fac Total 6861 | 93 448 659 414 294 885 136 2133 1799 Wait 1576 | . . 11 . 76 237 1 1002 249 Move 4751 | 74 405 615 412 213 571 114 967 1380 Hop . | . . . . . . . . . Pick Up 93 | 10 5 5 1 1 15 8 19 29 Fast Attach 17 | . 1 . . . 4 2 4 6 Attach 66 | 6 1 . 1 1 11 3 17 26 Detach 2 | . . . . 1 1 . . . Swap 27 | . 1 1 . . 11 . 8 6 Drop 47 | . 1 1 . 1 8 8 10 18 Fire 276 | 3 34 25 . 1 27 . 103 83 Melee . | . . . . . . . . . Ram . | . . . . . . . . . Kick 4 | . . . . . . . 3 1 Crush 2 | . . 1 . . . . . 1 Escape Stasis . | . . . . . . . . . Rewire . | . . . . . . . . . Trap . | . . . . . . . . . Miscellaneous . | . . . . . . . . . Route ------- -11/Scrapyard -10/Materials (discovered 4 exits: [*Mat x3] / [*Min]) -10/Mines (discovered 2 exits: [*Mat] / *Exi) -10/Exiles -9/Mines (discovered 2 exits: *Mat x2) -8/Materials -7/Factory -7/Garrison (discovered 3 exits: *Fac x3) -7/Factory (discovered 1 exit: [*Low]) History --------- Turn | Location | Event 8 | -11/Scrapyard | Discovered new exit (range 16) 128 | -11/Scrapyard | Entered Materials 129 | -10/Materials | Met a group of wandering Federalists 268 | -10/Materials | Discovered new exit (range 8) 302 | -10/Materials | Build established: Mutant 393 | -10/Materials | Discovered new exit (range 9) 528 | -10/Materials | Discovered new exit (range 15) 687 | -10/Materials | Discovered new exit (range 14) 881 | -10/Materials | Entered Mines 974 | -10/Mines | Received a Rocket Launcher from a helpful Derelict 1200 | -10/Mines | Assisted by bots powering up and referring to "LRC-V3" 1413 | -10/Mines | Learned Materials stockpile data 1475 | -10/Mines | Deemed a non-threat by the Exiles lab entrance 1475 | -10/Mines | Discovered new exit (range 5) 1740 | -10/Mines | Discovered new exit (range 3) 1934 | -10/Mines | Entered Exiles 1934 | -10/Exiles | Accompanied by 1 ally 1976 | -10/Exiles | Met 8R-AWN 2002 | -10/Exiles | Met EX-HEX 2054 | -10/Exiles | Met EX-BIN 2080 | -10/Exiles | Aligned with FarCom system 2082 | -10/Exiles | Given EX-Vault access code 2136 | -10/Exiles | Opened EX-Vault 2146 | -10/Exiles | Found Chronowheel 2182 | -10/Exiles | Warned to stay clear of 0b10 Research branches 2227 | -10/Exiles | Met EX-DEC 2286 | -10/Exiles | Discovered new exit (range 14) 2596 | -10/Exiles | Left Exiles lab with Chronowheel 2596 | -10/Exiles | Entered Mines 2596 | -9/Mines | Accompanied by 1 ally 2770 | -9/Mines | Assembled infested the area 2775 | -9/Mines | Assisted by a Guerilla fighting off Assembled 2876 | -9/Mines | Discovered new exit (range 9) 2893 | -9/Mines | Found the Drone Emporium 2905 | -9/Mines | Found Prototype Device 2906 | -9/Mines | Identified Sensor Drone Bay 2987 | -9/Mines | Identified exit to Materials 3019 | -9/Mines | Entered Materials 3019 | -8/Materials | Evolved 4 slots: Propulsion x2, Utility x2 3736 | -8/Materials | Discovered new exit (range 16) 3787 | -8/Materials | Central database locked down 4151 | -8/Materials | Entered Factory 4151 | -7/Factory | Evolved 2 slots: Power x1, Weapon x1 4191 | -7/Factory | Build established: Scavenger-Mutant 4286 | -7/Factory | Identified exit to Garrison 4335 | -7/Factory | Entered Garrison 4419 | -7/Garrison | Triggered checkpoint 4459 | -7/Garrison | Garrison Relay disabled 4618 | -7/Garrison | Build established: Hacker-Skirmisher 4709 | -7/Garrison | Triggered checkpoint 5467 | -7/Garrison | Discovered new exit (range 33) 5509 | -7/Garrison | Triggered checkpoint 5615 | -7/Garrison | Triggered checkpoint 5629 | -7/Garrison | Triggered checkpoint 5721 | -7/Garrison | Lost 3 parts (3n) 5770 | -7/Garrison | Discovered new exit (range 42) 5774 | -7/Garrison | Identified exit to Factory 5897 | -7/Garrison | Discovered exit to Factory (range 51) 6137 | -7/Garrison | Build established: Skirmisher 6159 | -7/Garrison | Triggered checkpoint 6225 | -7/Garrison | Garrison Relay disabled 6228 | -7/Garrison | Lost 5 parts (1p1n3w) 6454 | -7/Garrison | Core integrity fell below 50% 6493 | -7/Garrison | Build established: Scavenger-Mutant 6516 | -7/Garrison | Installed Relay Interface Framework 6670 | -7/Garrison | Garrison Relay disabled 6692 | -7/Garrison | Garrison Relay disabled 6971 | -7/Garrison | Build established: Bothacker-Mutant 7027 | -7/Garrison | Entered Factory 7392 | -7/Factory | Build established: Bothacker-Skirmisher 8163 | -7/Factory | Cargo convoy interrupted 8627 | -7/Factory | First assault squad dispatched 8868 | -7/Factory | Activated Chronowheel 8868 | -7/Factory | Spacetime reconverged on an earlier point 8908 | -7/Factory | Core integrity fell below 20% 9642 | -7/Factory | Discovered new exit (range 10) 9664 | -7/Factory | Destroyed by H-61 Shepherd with Heavy Assault Cannon Last Messages --------------- 09483_ Dropped Unknown Device. 09533_ System corrupted: Component data lost. 09541_ Dropped Adv. EMP Blaster. 09542_ Acquired Missile Launcher. 09557_ System corrupted: Matter fused (-7). 09583_ System corrupted: Energy discharge (-22). 09596_ Acquired 30 matter. 09615_ ALERT: Suspicious intruders detected, dispatching Specialist reinforcements to area. 09625_ System corrupted: Component data lost. 09642_ EXIT=FOUND 09652_ Gauss Rifle destroyed. 09656_ Target Analyzer destroyed. 09656_ Critical hit (Blast). 09660_ H-61 Shepherd calls for reinforcements. 09660_ ALERT: Hostile activity reported, dispatching reinforcements to area. 09660_ Proton Missile Launcher destroyed. 09664_ Med. Treads destroyed. 09664_ Critical hit (Blast). Map ----- +----------------------------------------------------+ | ??# ???????????????????????????????????????????? | | ??# ??????????????????????????????????????????## | | ??####??????????????????????????????????????? ? | | ???????????????????????????????????????????? | | ???????????????????????????????????????/! ??"" """ | | ????????????????????????????????????? /! """ """ | | ????????????????????????????????????? /! """ """ | | ????????????????????????????????????# | | ????????????????????????????????????# | | ??????????????????????????????????? | | ???????????????????????????????????? | | ???????????????????????????????????? | | ???????????????????????????????????? | | ???????????????????????????????????? | | ??????????????????????????????????????????## | | ???????????????????????????????????????????# | | ???????????????????????????????????????????# =* | | ???????????????????????????????????????????# ! | | ???????????????????????????????????????????# = | | ???????????????????????????????????????????# | | ?????????????###################???????????+ | | ?????????????# # # ##??????????####### | | ?????????????# ## #????????????????? | | ?????????????# ######??????###### | | ?????????????+ " H | | ?????????????# % @ #???????????###### | | ?????????????# % ; #????????????????? | | ?????????????# ####% # #????????????????? | | ?????????????## %##??#### ##??????????????????? | | ??????????????# #??????? #???????????????????? | | ??????????????# #????#???#???????????????????? | | ??????????????# #???# ??????????????????????? | | ??????????????# #???# ??? ??????????????????# | | ??????????????# #???# ??? #????????????????? | | ??????????????# #???# "?? #????????????????? | | ??????????????# #???#! """ #????????????????? | | ??????????????# #???# #????????????????? | | ??????????????# #???# """ #????????????????? | | ??????????????# #???# """ #????????????????? | | ??????????????# #???# """ #????????????????? | | ??????????????# #???# #????????????????? | | ??????????????# #???# """#????????????????? | | ??????????????# #???# """#????????????????? | | ????########### #???# R"#????????????????? | | ??? # #???# """#????????????????? | | ?? """ """ # #???# #????????????????# | | ?# """ """ # #???# #????????????????# | | ?# """ """ # #???# ##### #????????????????# | | ?# # #?### ###?# #????????????????# | | ?# """ """ # #?# #?# #????????????????+ | +----------------------------------------------------+ Best States ------------- Heat Dissipation 56 Energy Generation 31 Energy Capacity 350 Matter Stores 300 Matter Capacity 300 Sight Range 16 Terrain Scan Density 10 Armor Coverage 150 Evasion (%) 55 Target Analysis 5 Recoil Reduction 4 Offensive Hacking 10 Defensive Hacking 10 Relay Coupler Types 1 Relay Coupler Value 19 Item Schematics ----------------- Hacking Suite | -8/Materials | Scanalyzed Rocket Launcher | -8/Materials | Scanalyzed Imp. Light Armor Plating | -8/Materials | Scanalyzed Cooling System | -8/Materials | Scanalyzed Assault Cannon | -8/Materials | Scanalyzed Imp. EM Pulse Cannon | -8/Materials | Scanalyzed Plasma Cannon | -8/Materials | Scanalyzed Imp. Terrain Scanner | -8/Materials | Scanalyzed Remote Datajack | -7/Factory | Scanalyzed Robot Schematics ------------------ None Fabricated ------------ Nothing Repaired ---------- Nothing Studied --------- Aluminum Leg | -8/Materials | Hacked Lgt. Nuclear Core | -8/Materials | Hacked Plasma Cannon | -7/Factory | Hacked Alien Tech Used ----------------- None Achievements -------------- Join The Dark Side Mindtrick Spacetime Is Relative Challenges ------------ None Game ------ Seed FactoryHybridReconstructor Manual? 0 Play Time 01:22:26 Cumulative 44.7 hours Start 2025.11.03 @ 21:56:27 End 2025.11.03 @ 23:30:12 Sessions 1 Manual Loads 0 Difficulty Rogue Special Mode None Game No. 47 Rogue 37 Adventurer 10 Explorer 0 Win Type - Total 0 Types 0/0/0/0/0/0/0/0/0/0 Lore% 40 Gallery% 33 Achievement% 26 Wizard Run 0 Options --------- Layout 1 ASCII 0 Keyboard 0 Movement Mouse Keybinds 0 Fullscreen 2 Font 32/Smallcaps Map View 50x35 Zoom Use 0% Tactical HUD 1 Map Filters NONE Filters NONE Steam 1 RUN: b940c000-ea9b-4670-b620-974dcf155f5a